[Event "ISR-ch Youth 2019"]
[Site "Jerusalem"]
[Date "2019.04.17"]
[Round "8.4"]
[White "Sherman, Reem"]
[Black "Mizrahi, Ido"]
[Result "0-1"]
[ECO "B15"]
[WhiteElo "1883"]
[BlackElo "1957"]
[Annotator "NA"]
[PlyCount "82"]
[EventDate "2019.04.11"]
[EventType "swiss"]
[EventCountry "ISR"]
[SourceTitle "playchess.com"]
[Source "ChessBase"]
[SourceQuality "1"]
[TimeControl "5400+30"]

1. e4 {[%emt 0:00:00]} c6 {[%emt 0:00:00]} 2. d4 {[%emt 0:00:00]} d5 {[%emt 0:00:00]} 3. Nd2 {[%emt 0:00:00]} dxe4 {[%emt 0:00:00]} 4. Nxe4 {[%emt 0:00:05]} Nf6 {[%emt 0:00:00]} 5. Nxf6+ {[%emt 0:00:20]} exf6 {[%emt 0:00:00] LiveBook: 1467 Games} 6. Nf3 {[%emt 0:00:35]} Bd6 {[%emt 0:00:06]} 7. Be2 {[%emt 0:00:48]} O-O {[%emt 0:00:14]} 8. O-O {[%emt 0:00:46]} Qc7 {[%emt 0:01:09]} 9. c3 {[%emt 0:02:52]} Re8 {[%emt 0:01:33]} 10. h3 {[%emt 0:03:28]} Nd7 {[%emt 0:00:48]} 11. Qc2 {[%emt 0:05:51]} Nf8 {[%emt 0:01:14]} 12. Rd1 {[%emt 0:00:22]} Be6 {[%emt 0:02:54]} 13. b3 {[%emt 0:03:54]} Ng6 {[%emt 0:02:38]} 14. Bf1 {[%emt 0:03:07]} (14. Bc4 $11 {keeps the balance.}) 14... Bd5 $15 {[%emt 0:06:40]} 15. Nd2 {[%emt 0:01:23]} Nf4 {[%emt 0:00:55]} 16. g3 {[%emt 0:10:51]} Ne2+ {[%emt 0:03:14]} 17. Bxe2 {[%emt 0:00:08]} Rxe2 {[%emt 0:00:01]} 18. Qd3 {[%emt 0:00:20]} Rae8 {[%emt 0:38:42]} 19. Nf1 {[%emt 0:03:28]} R2e7 {[%emt 0:01:25]} 20. Be3 {[%emt 0:13:47]} Qd7 {[%emt 0:02:58]} 21. Kh2 {[%emt 0:14:20]} Bf3 {[%emt 0:02:06]} 22. Re1 {[%emt 0:03:14]} Re4 {[%emt 0:04:40]} 23. Bd2 {[%emt 0:02:38]} Be2 {[%emt 0:04:08]} 24. Rxe2 {[%emt 0:00:31]} Rxe2 {[%emt 0:00:02]} 25. Kg2 {[%emt 0:01:30]} R2e4 {[%emt 0:01:16]} 26. Be3 {[%emt 0:01:27]} f5 {[%emt 0:00:51]} 27. Nd2 {[%emt 0:02:26]} R4e7 {[%emt 0:00:12]} 28. Nc4 {[%emt 0:00:35]} Bc7 {[%emt 0:01:06]} 29. a4 {[%emt 0:05:04]} Qd5+ {[%emt 0:02:29]} 30. Kh2 {[%emt 0:01:57]} Qf3 {[%emt 0:01:49]} 31. Ne5 {[%emt 0:10:20]} Bxe5 {[%emt 0:00:33]} 32. dxe5 {[%emt 0:00:05]} Rxe5 {[%emt 0:00:09]} 33. Qd4 {[%emt 0:00:25]} c5 {[%emt 0:01:06]} 34. Qd7 {[%emt 0:01:12]} R5e7 {[%emt 0:00:29]} 35. Qd6 {[%emt 0:00:40]} b6 {[%emt 0:00:45]} 36. a5 {[%emt 0:00:24]} h6 {[%emt 0:03:40]} 37. axb6 {[%emt 0:02:25]} axb6 {[%emt 0:00:38]} 38. Ra4 {[%emt 0:04:13]} Rxe3 {[%emt 0:03:04]} 39. fxe3 {[%emt 0:00:05]} Qf2+ {[%emt 0:00:06]} 40. Kh1 {[%emt 0:00:11]} Rxe3 {[%emt 0:00:05]} 41. Ra1 {[%emt 0:02:03]} Re2 {[%emt 0:00:11]} 0-1

[Event "ISR-ch Youth 2019"]
[Site "Jerusalem"]
[Date "2019.04.17"]
[Round "8.5"]
[White "Cohen, Elad"]
[Black "Tsirilman, Guy"]
[Result "1-0"]
[ECO "B91"]
[WhiteElo "1828"]
[BlackElo "1812"]
[Annotator "NA"]
[PlyCount "109"]
[EventDate "2019.04.11"]
[EventType "swiss"]
[EventCountry "ISR"]
[SourceTitle "playchess.com"]
[Source "ChessBase"]
[SourceQuality "1"]
[TimeControl "5400+30"]

1. e4 {[%emt 0:00:00]} c5 {[%emt 0:00:10]} 2. Nf3 {[%emt 0:00:00]} d6 {[%emt 0:00:10]} 3. d4 {[%emt 0:00:00]} cxd4 {[%emt 0:00:07]} 4. Nxd4 {[%emt 0:00:00]} Nf6 {[%emt 0:00:33]} 5. Nc3 {[%emt 0:00:05]} a6 {[%emt 0:01:11]} 6. g3 {[%emt 0:00:07]} e5 {[%emt 0:00:50]} 7. Nde2 {[%emt 0:00:12]} Be7 {[%emt 0:01:14]} 8. Bg2 {[%emt 0:00:09]} O-O {[%emt 0:01:55]} 9. O-O {[%emt 0:00:41]} b5 {[%emt 0:04:04]} 10. Nd5 {[%emt 0:00:13]} Nbd7 {[%emt 0:05:49]} 11. Nec3 {[%emt 0:02:30]} Nb6 {[%emt 0:04:54]} 12. Nxe7+ {[%emt 0:02:43]} Qxe7 {[%emt 0:01:05]} 13. Bg5 {[%emt 0:00:07]} Bb7 $14 {[%emt 0:05:39]} 14. Qf3 {[%emt 0:03:37]} Rac8 {[%emt 0:11:34]} 15. Rac1 {[%emt 0:15:34]} h6 {[%emt 0:18:29]} 16. Bxf6 {[%emt 0:00:31]} Qxf6 {[%emt 0:00:03]} 17. Qxf6 {[%emt 0:07:18]} gxf6 {[%emt 0:00:11]} 18. Nb1 {[%emt 0:02:56]} Na4 {[%emt 0:04:22]} 19. b3 {[%emt 0:00:25]} Nc5 {[%emt 0:00:34]} 20. Nd2 {[%emt 0:07:41]} Rfd8 {[%emt 0:02:11]} 21. c4 {[%emt 0:02:35]} b4 {[%emt 0:02:03]} 22. a4 {[%emt 0:09:12]} Ne6 {[%emt 0:03:33]} 23. Bh3 {[%emt 0:06:55]} Nd4 {[%emt 0:11:05]} 24. Bxc8 {[%emt 0:01:26]} Rxc8 {[%emt 0:00:27]} 25. Rfe1 {[%emt 0:02:18]} Kf8 {[%emt 0:04:32]} 26. f4 {[%emt 0:02:34]} Ke7 {[%emt 0:02:02]} 27. Kf2 {[%emt 0:02:04]} Rc5 {[%emt 0:02:29]} 28. Re3 {[%emt 0:03:09]} a5 {[%emt 0:02:01]} 29. f5 {[%emt 0:08:02]} d5 {[%emt 0:00:49]} 30. exd5 {[%emt 0:01:01]} Bxd5 {[%emt 0:00:45]} 31. g4 {[%emt 0:03:42]} h5 {[%emt 0:03:32]} 32. h3 {[%emt 0:11:47]} h4 {[%emt 0:00:21]} 33. Nf1 {[%emt 0:02:21]} Bc6 {[%emt 0:03:09]} 34. Rd1 {[%emt 0:01:18]} Kd6 {[%emt 0:01:22]} 35. Rdd3 {[%emt 0:02:42]} Bd7 {[%emt 0:01:09]} 36. Nd2 {[%emt 0:00:38]} Bc6 {[%emt 0:00:02]} 37. Ne4+ {[%emt 0:00:45]} Bxe4 {[%emt 0:00:18]} 38. Rxe4 {[%emt 0:00:02]} Rc7 {[%emt 0:01:20]} 39. Ke3 {[%emt 0:00:59]} Rc5 {[%emt 0:02:36]} 40. Rdxd4+ {[%emt 0:00:53]} exd4+ {[%emt 0:00:06]} 41. Rxd4+ {[%emt 0:00:28]} Kc6 {[%emt 0:00:34]} 42. Re4 {[%emt 0:00:12]} Kd7 {[%emt 0:00:53]} 43. Kd4 {[%emt 0:00:29]} Rc8 {[%emt 0:00:17]} 44. c5 {[%emt 0:00:31]} Kc6 {[%emt 0:00:42]} 45. Kc4 {[%emt 0:00:14]} Rd8 {[%emt 0:00:13]} 46. Rd4 {[%emt 0:00:18]} Re8 {[%emt 0:00:08]} 47. Rd6+ {[%emt 0:00:08]} Kc7 {[%emt 0:00:03]} 48. Rxf6 {[%emt 0:00:37]} Re3 {[%emt 0:00:27]} 49. Rxf7+ {[%emt 0:00:19]} Kc6 {[%emt 0:00:39]} 50. Rf6+ {[%emt 0:00:28]} Kc7 {[%emt 0:00:05]} 51. g5 {[%emt 0:00:21]} Rxh3 {[%emt 0:00:02]} 52. g6 {[%emt 0:00:39]} Rg3 {[%emt 0:00:02]} 53. Kb5 {[%emt 0:00:28]} h3 {[%emt 0:00:20]} 54. Rf7+ {[%emt 0:00:08]} Kd8 {[%emt 0:00:15]} 55. Rh7 {[%emt 0:00:17]} 1-0

[Event "ISR-ch Youth 2019"]
[Site "Jerusalem"]
[Date "2019.04.17"]
[Round "8.6"]
[White "Milikow, Elie"]
[Black "Uritsky, Yonathan"]
[Result "1/2-1/2"]
[ECO "B30"]
[WhiteElo "2199"]
[BlackElo "1899"]
[Annotator "NA"]
[PlyCount "73"]
[EventDate "2019.04.11"]
[EventType "swiss"]
[EventCountry "ISR"]
[SourceTitle "playchess.com"]
[Source "ChessBase"]
[SourceQuality "1"]
[TimeControl "5400+30"]

1. e4 {[%emt 0:00:00]} c5 {[%emt 0:00:00]} 2. Nf3 {[%emt 0:00:00]} Nc6 {[%emt 0:00:08]} 3. Bb5 {[%emt 0:00:01]} Nf6 {[%emt 0:00:44]} 4. Nc3 {[%emt 0:00:09]} g6 {[%emt 0:00:41]} 5. e5 {[%emt 0:01:19]} Ng4 {[%emt 0:01:27] B30: Sicilian: 2...Nc6 3 Bb5, lines without ...g6} 6. Qe2 {[%emt 0:04:09]} (6. Bxc6 dxc6 7. d3 Nh6 8. Ne4 Nf5 9. c3 b6 10. g4 Ng7 11. Rg1 h5 12. h3 hxg4 13. hxg4 Ne6 14. Be3 Bg7 {0-1 (45) Naiditsch,A (2708)-Vachier Lagrave,M (2711) Warsaw 2012}) 6... Bg7 {[%emt 0:01:45]} 7. Bxc6 $1 {[%emt 0:00:21]} dxc6 {[%emt 0:00:54]} 8. d3 {[%emt 0:07:15]} O-O {[%emt 0:01:46]} 9. h3 $146 {[%emt 0:06:10]} ({Predecessor:} 9. Bf4 b6 10. h3 Nh6 11. g4 f5 12. g5 Nf7 13. h4 Be6 14. h5 gxh5 15. Rxh5 {1-0 (39) Matviishen,V (2476)-Brilej,J (2101) Konya 2018}) 9... Nh6 {[%emt 0:00:33]} 10. Be3 {[%emt 0:01:22]} b6 {[%emt 0:03:16]} 11. g4 {[%emt 0:07:23]} f6 {[%emt 0:07:33]} 12. exf6 {[%emt 0:01:50]} exf6 {[%emt 0:00:15]} 13. Qd2 {[%emt 0:01:43]} Nf7 {[%emt 0:03:35]} 14. O-O-O {[%emt 0:03:05]} Be6 {[%emt 1:14:23]} 15. Kb1 {[%emt 0:05:05]} Ne5 {[%emt 0:00:00]} 16. Nxe5 {[%emt 0:01:40]} fxe5 {[%emt 0:00:00]} 17. Qe2 {[%emt 0:14:35]} Bd5 {[%emt 0:00:00]} 18. Ne4 {[%emt 0:00:52]} Qc7 {[%emt 0:00:00]} 19. c4 {[%emt 0:06:07]} Bxe4 {[%emt 0:00:00]} 20. dxe4 {[%emt 0:01:04]} Rad8 {[%emt 0:00:00]} 21. g5 {[%emt 0:05:56]} Rxd1+ {[%emt 0:00:00]} 22. Rxd1 {[%emt 0:02:32]} Rd8 {[%emt 0:00:00]} 23. Rxd8+ {[%emt 0:01:15]} Qxd8 {[%emt 0:00:00]} 24. Kc2 {[%emt 0:00:37]} Qd7 {[%emt 0:00:00]} 25. Qg4 {[%emt 0:00:56]} Qxg4 {[%emt 0:00:00]} 26. hxg4 {[%emt 0:00:04]} Kf7 {[%emt 0:00:00]} 27. Kb3 {[%emt 0:04:31]} Ke6 {[%emt 0:00:00]} 28. Ka4 {[%emt 0:01:36]} Bf8 {[%emt 0:00:00]} 29. a3 {[%emt 0:01:25]} Bd6 {[%emt 0:00:00]} 30. b4 {[%emt 0:03:08]} cxb4 {[%emt 0:00:00]} 31. axb4 {[%emt 0:00:09]} Kd7 {[%emt 0:00:00]} 32. f3 {[%emt 0:04:14]} Bc7 {[%emt 0:00:00]} 33. Bd2 {[%emt 0:01:01]} Ke6 {[%emt 0:00:00]} 34. Be1 {[%emt 0:01:47]} Kd7 $11 {[%emt 0:00:00]} 35. Bd2 {[%emt 0:00:04]} Ke6 {[%emt 0:00:00]} 36. Be1 {[%emt 0:00:03]} Kd7 {[%emt 0:00:00]} 37. Bd2 {[%emt 0:00:04]} 1/2-1/2

[Event "ISR-ch Youth 2019"]
[Site "Jerusalem"]
[Date "2019.04.17"]
[Round "8.7"]
[White "Ribstein, Orel"]
[Black "Dezent, Eyal"]
[Result "1-0"]
[ECO "D78"]
[WhiteElo "1708"]
[BlackElo "1300"]
[Annotator "NA"]
[PlyCount "73"]
[EventDate "2019.04.11"]
[EventType "swiss"]
[EventCountry "ISR"]
[SourceTitle "playchess.com"]
[Source "ChessBase"]
[SourceQuality "1"]
[TimeControl "5400+30"]

1. d4 {[%emt 0:00:00]} d5 {[%emt 0:00:00]} 2. Nf3 {[%emt 0:00:01]} Nf6 {[%emt 0:00:00]} 3. c4 {[%emt 0:00:05]} c6 {[%emt 0:00:00]} 4. Nbd2 {[%emt 0:00:10]} g6 {[%emt 0:00:53]} 5. g3 {[%emt 0:00:09]} Bg7 {[%emt 0:00:19]} 6. Bg2 {[%emt 0:00:16]} O-O {[%emt 0:00:16]} 7. O-O {[%emt 0:00:24]} Bf5 {[%emt 0:01:12]} 8. Nh4 {[%emt 0:03:19]} e6 {[%emt 0:10:06]} 9. h3 {[%emt 0:05:05]} Ne4 {[%emt 0:08:00]} 10. cxd5 {[%emt 0:06:06]} cxd5 {[%emt 0:02:09]} 11. Nxf5 {[%emt 0:05:51]} exf5 {[%emt 0:00:32]} 12. Nxe4 {[%emt 0:01:16]} fxe4 {[%emt 0:00:24]} 13. e3 {[%emt 0:03:03]} Nc6 {[%emt 0:02:37]} 14. b3 {[%emt 0:04:08]} Qd7 {[%emt 0:08:57]} 15. Ba3 {[%emt 0:00:32]} Rfd8 {[%emt 0:00:17]} 16. Qd2 {[%emt 0:02:03]} a5 {[%emt 0:02:05]} 17. Rfc1 {[%emt 0:04:16]} a4 {[%emt 0:02:12]} 18. Bc5 {[%emt 0:08:50]} Bf8 {[%emt 0:09:24]} 19. b4 {[%emt 0:06:16]} b5 {[%emt 0:03:49]} 20. Bf1 {[%emt 0:00:45]} Rab8 {[%emt 0:01:26]} 21. Bxf8 {[%emt 0:00:16]} Kxf8 {[%emt 0:00:15]} 22. Rc5 {[%emt 0:01:50]} Na7 {[%emt 0:02:57]} 23. Rac1 {[%emt 0:08:33]} Rbc8 {[%emt 0:02:12]} 24. Qc2 {[%emt 0:03:31]} Rxc5 {[%emt 0:02:58]} 25. Qxc5+ {[%emt 0:00:05]} Kg7 {[%emt 0:00:20]} 26. Qc7 {[%emt 0:01:07]} Kf8 {[%emt 0:03:53]} 27. Qxd7 {[%emt 0:01:08]} Rxd7 {[%emt 0:00:12]} 28. Rc5 {[%emt 0:00:06]} Rb7 {[%emt 0:03:34]} 29. a3 {[%emt 0:01:00]} Ke7 {[%emt 0:01:24]} 30. Rxd5 {[%emt 0:00:06]} f5 {[%emt 0:00:23]} 31. g4 {[%emt 0:01:21]} Kf6 {[%emt 0:00:55]} 32. gxf5 {[%emt 0:00:53]} gxf5 {[%emt 0:00:10]} 33. Kh2 {[%emt 0:01:39]} Kg5 {[%emt 0:01:38]} 34. Kg3 {[%emt 0:02:05]} Rg7 {[%emt 0:05:25]} 35. Bxb5 {[%emt 0:01:52]} Nxb5 {[%emt 0:00:12]} 36. Rxb5 {[%emt 0:00:13]} h5 {[%emt 0:00:14]} 37. Rc5 {[%emt 0:01:02]} 1-0

[Event "ISR-ch Youth 2019"]
[Site "Jerusalem"]
[Date "2019.04.17"]
[Round "8.8"]
[White "Rabinovich, Yoav"]
[Black "Blumenthal, Michael"]
[Result "1-0"]
[ECO "D02"]
[WhiteElo "1081"]
[BlackElo "1277"]
[Annotator "NA"]
[PlyCount "55"]
[EventDate "2019.04.11"]
[EventType "swiss"]
[EventCountry "ISR"]
[SourceTitle "playchess.com"]
[Source "ChessBase"]
[SourceQuality "1"]
[TimeControl "5400+30"]

1. d4 {[%emt 0:00:00]} Nf6 {[%emt 0:00:00]} 2. Nf3 {[%emt 0:00:00]} d5 {[%emt 0:00:00]} 3. Bf4 {[%emt 0:00:00]} c5 {[%emt 0:00:08]} 4. e3 {[%emt 0:00:00]} Nc6 {[%emt 0:02:20]} 5. Nbd2 {[%emt 0:00:17]} Bf5 {[%emt 0:01:22]} 6. Bb5 {[%emt 0:01:01]} e6 {[%emt 0:02:15]} 7. c3 {[%emt 0:01:42]} Be7 {[%emt 0:02:05]} 8. Ne5 {[%emt 0:01:17]} Qb6 {[%emt 0:03:41]} 9. Qa4 {[%emt 0:00:31]} Rc8 {[%emt 0:02:03]} 10. Bg5 {[%emt 0:02:53]} O-O {[%emt 0:02:53]} 11. Bxf6 {[%emt 0:00:19]} Bxf6 {[%emt 0:01:28]} 12. Nd7 {[%emt 0:00:05]} Qc7 {[%emt 0:00:13]} 13. Nxf8 {[%emt 0:00:33]} Rxf8 {[%emt 0:00:12]} 14. O-O {[%emt 0:01:14]} cxd4 {[%emt 1:18:20]} 15. cxd4 {[%emt 0:01:36]} Qd6 {[%emt 0:00:00]} 16. Bxc6 {[%emt 0:00:09]} bxc6 {[%emt 0:00:00]} 17. Rac1 {[%emt 0:00:16]} Rc8 {[%emt 0:00:00]} 18. Nb3 {[%emt 0:00:56]} Bd8 {[%emt 0:00:00]} 19. Rc3 {[%emt 0:01:08]} Bc7 {[%emt 0:00:00]} 20. f4 {[%emt 0:00:39]} Bb8 {[%emt 0:00:00]} 21. Rfc1 {[%emt 0:00:39]} h6 {[%emt 0:00:00]} 22. Rxc6 {[%emt 0:00:12]} Rxc6 {[%emt 0:00:00]} 23. Rxc6 {[%emt 0:00:05]} Qd7 {[%emt 0:00:00]} 24. Nc5 {[%emt 0:00:23]} Qe8 {[%emt 0:00:00]} 25. Ra6 {[%emt 0:03:19]} Qc8 {[%emt 0:00:00]} 26. Qd7 {[%emt 0:01:36]} Qf8 {[%emt 0:00:00]} 27. Rc6 {[%emt 0:01:30]} e5 {[%emt 0:00:00]} 28. Qxf5 {[%emt 0:00:13]} 1-0

[Event "ISR-ch Youth 2019"]
[Site "Jerusalem"]
[Date "2019.04.17"]
[Round "8.9"]
[White "Levitan, Ronit"]
[Black "Levin, Emily"]
[Result "1-0"]
[ECO "B22"]
[WhiteElo "2032"]
[BlackElo "1545"]
[Annotator "NA"]
[PlyCount "83"]
[EventDate "2019.04.11"]
[EventType "swiss"]
[EventCountry "ISR"]
[SourceTitle "playchess.com"]
[Source "ChessBase"]
[SourceQuality "1"]
[TimeControl "5400+30"]

1. e4 {[%emt 0:00:00]} c5 {[%emt 0:00:00]} 2. c3 {[%emt 0:00:00]} Nf6 {[%emt 0:00:22]} 3. e5 {[%emt 0:00:03]} Nd5 {[%emt 0:00:31]} 4. d4 {[%emt 0:00:27]} cxd4 {[%emt 0:00:44]} 5. cxd4 {[%emt 0:00:17]} d6 {[%emt 0:01:03]} 6. Nf3 {[%emt 0:00:21]} Nc6 {[%emt 0:00:23]} 7. Bc4 {[%emt 0:00:14]} dxe5 {[%emt 0:00:35]} 8. Nxe5 {[%emt 0:00:35]} e6 {[%emt 0:04:30]} 9. O-O {[%emt 0:01:44]} Bd6 {[%emt 0:02:05]} 10. Nf3 {[%emt 0:02:27]} O-O {[%emt 0:05:09]} 11. Nc3 {[%emt 0:01:47]} Nxc3 {[%emt 0:08:16] LiveBook: 18 Games} 12. bxc3 {[%emt 0:00:13]} Qc7 {[%emt 0:00:17] B22: Sicilian: 2 c3} (12... Ne7 13. Bd3 Ng6 14. Qe2 b6 15. Be4 Rb8 16. h4 h6 17. h5 Ne7 18. Ne5 Bb7 19. Bc2 Bxe5 20. dxe5 {1-0 (39) Fressinet,L (2636)-Avrukh,B (2620) playchess.com INT 2004}) 13. Bd3 {[%emt 0:08:48]} f5 {[%emt 0:08:30]} 14. Re1 $146 {[%emt 0:11:38]} ({Predecessor:} 14. h3 Kh8 15. Re1 e5 16. dxe5 Nxe5 17. Bb2 Bd7 18. c4 Rae8 19. Nxe5 Bxe5 20. Bxe5 Rxe5 21. Rxe5 Qxe5 {½-½ (41) Muller,R (1402)-Grey,P (2000) San Francisco 2013}) 14... Kh8 {[%emt 0:06:09]} 15. Qe2 {[%emt 0:10:25]} Bd7 {[%emt 0:06:56]} 16. c4 {[%emt 0:21:39]} Bb4 {[%emt 0:09:28]} 17. Bd2 {[%emt 0:00:47]} Bxd2 {[%emt 0:00:24]} 18. Qxd2 {[%emt 0:00:10]} Rae8 {[%emt 0:04:11]} 19. Qb2 {[%emt 0:04:43]} b6 {[%emt 0:07:43]} 20. Ne5 {[%emt 0:04:49]} Nxe5 {[%emt 0:03:42]} 21. Rxe5 {[%emt 0:00:38]} Rf6 {[%emt 0:01:51]} 22. Rae1 {[%emt 0:00:55]} Rg8 {[%emt 0:04:13]} 23. d5 $14 {[%emt 0:07:38]} exd5 {[%emt 0:02:01]} 24. cxd5 {[%emt 0:00:08]} Qd6 {[%emt 0:00:30]} 25. Qb1 {[%emt 0:03:15]} Rgf8 {[%emt 0:03:21]} 26. Bc2 {[%emt 0:01:27]} R6f7 {[%emt 0:03:30]} 27. Bb3 {[%emt 0:00:23]} Rf6 {[%emt 0:00:16]} 28. Qd1 {[%emt 0:01:15]} f4 {[%emt 0:01:26]} 29. f3 {[%emt 0:02:47]} Rg6 {[%emt 0:00:28]} 30. Bc2 {[%emt 0:00:39]} Qc5+ {[%emt 0:01:13]} 31. Kh1 {[%emt 0:00:52]} Rh6 {[%emt 0:00:49]} 32. Re7 {[%emt 0:03:53]} Qd6 {[%emt 0:01:00]} 33. Qd4 {[%emt 0:00:59]} Rg8 {[%emt 0:01:56]} 34. Kg1 {[%emt 0:00:07]} a5 {[%emt 0:01:58]} 35. R1e5 {[%emt 0:04:57]} Rf6 {[%emt 0:06:22]} 36. Rh5 {[%emt 0:01:17]} h6 {[%emt 0:01:13]} 37. Qe4 {[%emt 0:03:17]} Qc5+ {[%emt 0:01:36]} 38. Kh1 {[%emt 0:00:45]} Bf5 {[%emt 0:00:58]} 39. Rxf5 {[%emt 0:00:30]} Qa3 {[%emt 0:00:38]} 40. Rxf6 {[%emt 0:00:48]} Qc1+ {[%emt 0:00:28]} 41. Qe1 {[%emt 0:00:10]} Qxc2 {[%emt 0:00:50]} 42. Rxh6+ {[%emt 0:00:28]} 1-0

[Event "ISR-ch Youth 2019"]
[Site "Jerusalem"]
[Date "2019.04.17"]
[Round "8.10"]
[White "Simchayev, Alexandra"]
[Black "Qasem, Huda"]
[Result "0-1"]
[ECO "B22"]
[WhiteElo "1514"]
[BlackElo "1664"]
[Annotator "NA"]
[PlyCount "96"]
[EventDate "2019.04.11"]
[EventType "swiss"]
[EventCountry "ISR"]
[SourceTitle "playchess.com"]
[Source "ChessBase"]
[SourceQuality "1"]
[TimeControl "5400+30"]

1. e4 {[%emt 0:00:00]} c5 {[%emt 0:00:00]} 2. Nf3 {[%emt 0:00:00]} Nc6 {[%emt 0:00:00]} 3. c3 {[%emt 0:00:00]} e5 {[%emt 0:00:00]} 4. Bb5 {[%emt 0:01:06]} Qc7 {[%emt 0:00:35]} 5. d3 {[%emt 0:00:38]} Be7 {[%emt 0:00:37]} 6. O-O {[%emt 0:02:30]} Nf6 {[%emt 0:00:26]} 7. Re1 {[%emt 0:01:00]} a6 {[%emt 0:03:14]} 8. Ba4 {[%emt 0:01:18]} b5 {[%emt 0:00:27]} 9. Bc2 {[%emt 0:00:19]} O-O {[%emt 0:00:09]} 10. Bg5 {[%emt 0:00:50]} Bb7 {[%emt 0:01:45]} 11. Nbd2 {[%emt 0:00:48]} h6 {[%emt 0:02:02]} 12. Bxf6 {[%emt 0:00:25]} Bxf6 {[%emt 0:00:07]} 13. Nf1 {[%emt 0:00:34]} Ne7 {[%emt 0:01:22]} 14. Ne3 {[%emt 0:00:56]} g6 {[%emt 0:03:39]} 15. Qd2 {[%emt 0:02:56]} Bg5 {[%emt 0:10:45]} 16. Nxg5 {[%emt 0:08:09]} hxg5 {[%emt 0:00:08]} 17. Ng4 {[%emt 0:04:34]} f6 {[%emt 0:00:12]} 18. Re3 {[%emt 0:01:12]} Kg7 {[%emt 0:01:51]} 19. Rc1 {[%emt 0:05:24]} Rh8 {[%emt 0:04:42]} 20. Rf3 {[%emt 0:03:42]} Raf8 {[%emt 0:02:32]} 21. Qe3 {[%emt 0:03:30]} Rh5 {[%emt 0:06:58]} 22. Rh3 {[%emt 0:05:22]} d5 {[%emt 0:03:14]} 23. d4 {[%emt 0:14:53]} exd4 {[%emt 0:07:31]} 24. cxd4 {[%emt 0:01:24]} cxd4 {[%emt 0:01:53]} 25. Bd1 {[%emt 0:01:43]} Qb6 {[%emt 0:02:39]} 26. Qg3 {[%emt 0:02:30]} Rc8 {[%emt 0:05:42]} 27. Rxc8 {[%emt 0:01:46]} Bxc8 {[%emt 0:02:06]} 28. e5 {[%emt 0:04:20]} Bxg4 {[%emt 0:04:56]} 29. Bxg4 {[%emt 0:03:10]} Rxh3 {[%emt 0:00:38]} 30. Bxh3 {[%emt 0:01:11]} Qc6 {[%emt 0:01:30]} 31. exf6+ {[%emt 0:00:38]} Kxf6 {[%emt 0:00:45]} 32. Qf3+ {[%emt 0:00:38]} Kg7 {[%emt 0:00:51]} 33. Qd1 {[%emt 0:00:52]} d3 {[%emt 0:02:47]} 34. g3 {[%emt 0:00:46]} Qc2 {[%emt 0:00:43]} 35. Bg4 {[%emt 0:04:20]} Nc6 {[%emt 0:04:08]} 36. Qe1 {[%emt 0:09:05]} d2 {[%emt 0:00:55]} 37. Qe2 {[%emt 0:03:19]} Qxb2 {[%emt 0:01:22]} 38. Qd3 {[%emt 0:00:38]} Qd4 {[%emt 0:05:54]} 39. Qxd4+ {[%emt 0:02:59]} Nxd4 {[%emt 0:00:05]} 40. Bd1 {[%emt 0:01:47]} b4 {[%emt 0:00:27]} 41. f3 {[%emt 0:00:23]} Nb5 {[%emt 0:00:28]} 42. Kf2 {[%emt 0:02:49]} Nc3 {[%emt 0:00:05]} 43. Ke3 {[%emt 0:00:52]} Nxd1+ {[%emt 0:00:03]} 44. Kxd2 {[%emt 0:00:10]} Nb2 {[%emt 0:00:21]} 45. Kc2 {[%emt 0:00:39]} Nc4 {[%emt 0:00:04]} 46. Kb3 {[%emt 0:01:06]} a5 {[%emt 0:00:03]} 47. f4 {[%emt 0:01:05]} gxf4 {[%emt 0:00:06]} 48. gxf4 {[%emt 0:00:08]} Kf6 {[%emt 0:23:13]} 0-1

[Event "ISR-ch Youth 2019"]
[Site "Jerusalem"]
[Date "2019.04.17"]
[Round "8.11"]
[White "Kochavi, Dana"]
[Black "Gadasi, Noam"]
[Result "0-1"]
[ECO "B50"]
[WhiteElo "1293"]
[BlackElo "1653"]
[Annotator "NA"]
[PlyCount "70"]
[EventDate "2019.04.11"]
[EventType "swiss"]
[EventCountry "ISR"]
[SourceTitle "playchess.com"]
[Source "ChessBase"]
[SourceQuality "1"]
[TimeControl "5400+30"]

1. e4 {[%emt 0:00:00]} c5 {[%emt 0:00:00]} 2. Nf3 {[%emt 0:00:00]} d6 {[%emt 0:00:00]} 3. c3 {[%emt 0:00:00]} Nf6 {[%emt 0:00:00]} 4. h3 {[%emt 0:00:09]} g6 {[%emt 0:00:09]} 5. Bd3 {[%emt 0:00:16]} Bg7 {[%emt 0:00:22]} 6. Bc2 {[%emt 0:00:14]} Nc6 {[%emt 0:00:48]} 7. O-O {[%emt 0:00:13]} O-O {[%emt 0:00:09]} 8. d4 {[%emt 0:00:05]} cxd4 {[%emt 0:00:15]} 9. cxd4 {[%emt 0:01:44]} Nb4 {[%emt 0:00:32]} 10. Bb3 {[%emt 0:00:07]} d5 {[%emt 0:00:36]} 11. e5 {[%emt 0:00:39]} Ne4 {[%emt 0:01:07]} 12. Nc3 {[%emt 0:00:38]} Nxc3 {[%emt 0:08:10]} 13. bxc3 {[%emt 0:00:50]} Nc6 {[%emt 0:00:15]} 14. Nh2 {[%emt 0:06:31]} b6 {[%emt 0:03:41]} 15. Ng4 {[%emt 0:02:10]} Na5 {[%emt 0:02:19]} 16. Bc2 {[%emt 0:06:30]} Qc7 {[%emt 0:04:07]} 17. Nh6+ {[%emt 0:01:26]} Bxh6 {[%emt 0:19:21]} 18. Bxh6 {[%emt 0:00:29]} Rd8 {[%emt 0:00:12]} 19. Qf3 {[%emt 0:05:41]} Ba6 {[%emt 0:05:49]} 20. Rfc1 {[%emt 0:03:18]} Rac8 {[%emt 0:02:41]} 21. Bb1 {[%emt 0:02:26]} Qc4 {[%emt 0:01:46]} 22. Bf5 {[%emt 0:01:34]} Rc6 {[%emt 0:03:29]} 23. h4 {[%emt 0:02:02]} gxf5 {[%emt 0:02:49]} 24. h5 {[%emt 0:00:55]} Rxh6 {[%emt 0:00:18]} 25. Qg3+ {[%emt 0:02:02]} Kh8 {[%emt 0:01:02]} 26. Qg5 {[%emt 0:00:25]} Re6 {[%emt 0:01:09]} 27. Qxf5 {[%emt 0:00:25]} Rf8 {[%emt 0:00:36]} 28. Qg5 {[%emt 0:01:34]} Qd3 {[%emt 0:07:09]} 29. Re1 {[%emt 0:06:43]} Rg8 {[%emt 0:02:48]} 30. Qf4 {[%emt 0:00:29]} Qh3 {[%emt 0:01:57]} 31. g3 {[%emt 0:01:25]} Qxh5 {[%emt 0:01:11]} 32. Re3 {[%emt 0:00:10]} Nc4 {[%emt 0:05:52]} 33. Ree1 {[%emt 0:00:58]} Rg5 {[%emt 0:02:22]} 34. Qc1 {[%emt 0:01:24]} Rh6 {[%emt 0:01:07]} 35. Kf1 {[%emt 0:01:50]} Nd2+ {[%emt 0:00:19]} 0-1